bitfinex/quotes_BTCUSD_20220212
["timestamp","ask_amount","ask_price","bid_price","bid_amount"]
[1644702484562,0.0439,41923.0,41919.0,0.07669186]
[1644702487566,0.0439,41923.0,41918.0,1.0]
[1644702487766,0.0439,41923.0,41918.0,0.99640045]
[1644702487970,0.31244577,41922.0,41918.0,0.99640045]
[1644702488167,0.0439,41921.0,41918.0,0.99640045]
[1644702488416,0.169328,41924.0,41918.0,0.99640045]
[1644702488417,0.0439,41920.0,41918.0,0.99640045]
[1644702488616,0.0439,41919.0,41918.0,0.99640045]
[1644702489017,0.0439,41919.0,41918.0,0.996011]
[1644702489218,0.26664369,41919.0,41918.0,0.996011]
[1644702489820,0.0439,41919.0,41918.0,0.996011]
[1644702490020,0.0439,41919.0,41918.0,1.05926466]
[1644702491543,0.0439,41919.0,41918.0,0.996011]
[1644702492371,0.0439,41919.0,41918.0,1.07814667]
[1644702492672,0.0439,41919.0,41918.0,0.996011]
[1644702493770,0.24552791,41919.0,41918.0,0.996011]
[1644702494170,0.0439,41919.0,41918.0,0.996011]
[1644702494372,0.99601,41918.0,41891.0,0.0111]
[1644702494572,0.05,41900.0,41891.0,0.0111]
[1644702494774,0.05,41900.0,41889.0,0.009549]
[1644702494775,1.58017575,41899.0,41889.0,0.009549]
[1644702494970,0.3439,41899.0,41889.0,0.009549]
[1644702495170,0.0439,41899.0,41889.0,0.009549]
[1644702495371,0.07,41910.0,41895.0,0.08130768]
[1644702495372,0.1,41905.0,41895.0,0.08130768]
[1644702495571,0.17,41910.0,41895.0,0.08130768]
[1644702495572,0.37821,41910.0,41895.0,0.08130768]
[1644702495829,0.3,41909.0,41895.0,0.05]
[1644702496017,0.0439,41909.0,41889.0,0.009549]
[1644702496217,0.3,41908.0,41889.0,0.009549]
[1644702496416,0.0439,41907.0,41898.0,0.2138369]
[1644702497018,0.0439,41907.0,41896.0,0.25714653]
[1644702497616,0.0439,41907.0,41889.0,0.009549]
[1644702497820,0.54171606,41894.0,41889.0,0.009549]
[1644702498019,0.3,41893.0,41889.0,0.009549]
[1644702498219,0.0439,41892.0,41889.0,0.009549]
[1644702498421,0.0439,41891.0,41889.0,0.009549]
[1644702498619,0.0439,41890.0,41889.0,0.009549]
[1644702499659,0.0439,41890.0,41887.0,0.00041607]
[1644702500063,0.60141406,41894.0,41890.0,0.00287876]
[1644702500064,0.54171606,41894.0,41890.0,0.00287876]
[1644702500259,0.54171606,41894.0,41893.0,0.08568331]
[1644702500460,0.54171606,41894.0,41890.0,0.00287876]
[1644702501066,0.05,41891.0,41874.0,0.0031]
[1644702501268,0.05,41891.0,41874.0,0.0021]
[1644702501269,1.245,41879.0,41874.0,0.0021]
[1644702501466,0.05,41875.0,41874.0,0.0021]
[1644702501664,0.3439,41878.0,41872.0,0.0042]
[1644702501865,0.0439,41877.0,41872.0,0.0042]
[1644702502068,0.0439,41877.0,41873.0,0.22961091]
[1644702502866,0.4439,41885.0,41880.0,0.0784164]
[1644702503067,0.4439,41885.0,41873.0,0.22961091]
[1644702503329,0.4439,41885.0,41884.0,0.16868403]
[1644702503520,0.1439,41885.0,41878.0,0.22292346]
[1644702503722,0.0439,41885.0,41878.0,0.22292346]
[1644702503920,0.0439,41885.0,41872.0,0.0042]
[1644702504120,0.25657029,41884.0,41878.0,0.00041569]
[1644702504321,1.245,41883.0,41878.0,0.00041569]
[1644702504621,0.05972,41883.0,41878.0,0.00041569]
[1644702504822,0.16255651,41882.0,41878.0,0.00041569]
[1644702505022,0.16255651,41885.0,41876.0,0.21641924]
[1644702505320,0.00023838,41883.0,41876.0,0.21591924]
[1644702505721,0.00023838,41883.0,41881.0,0.26093938]
[1644702506124,0.00023838,41883.0,41877.0,0.08565585]
[1644702506325,0.25699457,41883.0,41877.0,0.08565585]
[1644702506522,0.25850585,41883.0,41877.0,0.08565585]
[1644702506723,0.05995138,41884.0,41877.0,0.34289509]
[1644702506925,0.00023838,41884.0,41877.0,0.34289509]
[1644702507571,0.108,41885.0,41877.0,0.34289509]
[1644702507771,0.00023838,41883.0,41878.0,0.24134844]
[1644702508875,0.059713,41884.0,41879.0,0.23618517]
[1644702509072,0.059713,41884.0,41878.0,0.24174769]
[1644702509073,0.00039921,41883.0,41878.0,0.24174769]
[1644702509975,0.059713,41884.0,41878.0,0.24084844]
[1644702510174,0.00039921,41883.0,41878.0,0.24124769]
[1644702511017,0.00405182,41882.0,41878.0,0.24124769]
[1644702511215,0.00405182,41882.0,41878.0,0.24084844]
[1644702511422,0.00405182,41882.0,41878.0,0.24124769]
[1644702511817,0.00405182,41882.0,41878.0,0.23824769]
[1644702512415,0.00405182,41882.0,41878.0,0.23734844]
[1644702512616,0.00445103,41882.0,41878.0,0.23774769]
[1644702513019,0.108,41885.0,41878.0,0.23774769]
[1644702513516,0.108,41885.0,41878.0,0.23734844]
[1644702513920,0.108,41885.0,41884.0,0.21479215]
[1644702514118,0.108,41885.0,41884.0,0.29466986]
[1644702514763,0.108,41885.0,41884.0,0.29416986]
[1644702515764,0.108,41885.0,41877.0,0.00031052]
[1644702515967,0.3,41884.0,41877.0,0.00031052]
[1644702516163,0.35,41884.0,41877.0,0.00031052]
[1644702516364,0.45,41884.0,41877.0,0.00031052]
[1644702516566,0.00406302,41881.0,41879.0,0.00295068]
[1644702516764,0.05186302,41881.0,41879.0,0.00295068]
[1644702517263,0.05186302,41881.0,41879.0,0.00245068]
[1644702518062,0.00406302,41881.0,41879.0,0.00245068]
[1644702520314,0.00406302,41881.0,41879.0,0.00195068]
[1644702520813,0.00406302,41881.0,41879.0,0.19003028]
[1644702521814,0.00439101,41883.0,41879.0,0.19106817]
[1644702522259,0.00439101,41883.0,41882.0,0.0839856]
[1644702522959,0.00439101,41883.0,41882.0,0.0834856]
[1644702525661,0.00439101,41883.0,41879.0,0.00340431]
[1644702525662,0.00439101,41883.0,41879.0,0.00248857]
[1644702525916,0.00439101,41883.0,41879.0,0.00290431]
[1644702526518,0.01349101,41883.0,41879.0,0.00290431]
[1644702526918,0.01349101,41883.0,41879.0,0.00248857]
[1644702527120,0.107524,41882.0,41879.0,0.0029043]
[1644702527320,0.35573394,41881.0,41877.0,0.00031052]
[1644702527519,0.9978,41880.0,41877.0,0.00031052]
[1644702527718,0.0978,41880.0,41877.0,0.00031052]
[1644702527919,0.059725,41879.0,41872.0,0.00210721]
[1644702528119,0.0478,41878.0,41872.0,0.00210721]
[1644702528321,0.0978,41878.0,41873.0,0.06430726]
[1644702528518,0.0978,41878.0,41873.0,0.05880726]
[1644702529019,0.2573901,41877.0,41873.0,0.05880726]
[1644702529222,0.0478,41876.0,41873.0,0.05880726]
[1644702529575,0.0478,41876.0,41873.0,0.05922079]
[1644702529976,0.0478,41876.0,41873.0,0.00041353]
[1644702530376,0.0478,41876.0,41872.0,0.00210721]
[1644702530576,0.0478,41876.0,41872.0,0.00252075]
[1644702531378,0.0978,41876.0,41872.0,0.00252075]
[1644702531579,0.0478,41876.0,41872.0,0.00210721]
[1644702531782,0.0478,41876.0,41872.0,0.00110721]
[1644702531980,1.245,41875.0,41871.0,0.01120721]
[1644702532180,0.0478,41874.0,41871.0,0.01120721]
[1644702532386,0.3,41873.0,41871.0,0.01110721]
[1644702532581,0.0478,41872.0,41871.0,0.01110721]
[1644702532782,0.0478,41872.0,41871.0,0.00610721]
[1644702533431,0.3478,41872.0,41871.0,0.00610721]
[1644702533632,1.5928,41872.0,41871.0,0.00610721]
[1644702533834,1.5928,41872.0,41867.0,0.0011]
[1644702533835,1.6928,41872.0,41867.0,0.0011]
[1644702534031,1.6928,41872.0,41866.0,0.0031]
[1644702534232,0.95,41871.0,41869.0,1.18e-06]
[1644702534435,1.61770458,41870.0,41863.0,0.00164497]
[1644702534634,0.21119244,41864.0,41863.0,0.00164497]
[1644702534833,0.43776872,41864.0,41863.0,0.00164497]
[1644702535233,0.53776872,41864.0,41863.0,0.00164497]
[1644702535533,0.53776872,41864.0,41861.0,0.00410118]
[1644702535534,0.59751772,41864.0,41861.0,0.00410118]
[1644702535935,0.23544417,41862.0,41861.0,0.00410118]
[1644702536134,1.84899888,41862.0,41861.0,0.00410118]
[1644702536333,0.80399888,41862.0,41861.0,0.00410118]
[1644702536535,0.80399888,41862.0,41860.0,0.00170118]
[1644702536536,0.45,41861.0,41860.0,0.00170118]
[1644702536735,0.33880896,41861.0,41860.0,0.00170118]
[1644702536937,0.43880896,41861.0,41860.0,0.00170118]
[1644702537359,0.1478,41861.0,41860.0,0.00170118]
[1644702537562,0.1478,41861.0,41858.0,0.00100118]
[1644702537761,0.05,41860.0,41858.0,0.00100118]
[1644702537960,0.0478,41859.0,41858.0,0.00100118]
[1644702539360,0.35458772,41859.0,41858.0,0.00100118]
[1644702539761,0.45458772,41859.0,41858.0,0.00100118]
[1644702540161,0.1478,41859.0,41858.0,0.00100118]
[1644702540562,0.1478,41859.0,41856.0,0.00140925]
[1644702540563,0.509526,41857.0,41851.0,0.0112]
[1644702540823,0.509526,41857.0,41848.0,0.001]
[1644702540824,0.5974,41854.0,41848.0,0.001]
[1644702541017,1.304783,41852.0,41848.0,0.001]
[1644702541316,1.304783,41852.0,41840.0,0.0021]
[1644702541317,1.24188,41847.0,41840.0,0.0021]
[1644702541517,1.24188,41847.0,41825.0,0.001]
[1644702541518,1.77307094,41846.0,41825.0,0.001]
[1644702541717,0.059792,41842.0,41838.0,0.001]
[1644702541916,0.059792,41842.0,41825.0,0.001]
[1644702541917,0.45503175,41839.0,41837.0,0.0012]
[1644702542120,1.28968,41838.0,41837.0,0.0012]
[1644702542316,0.1978,41838.0,41837.0,0.0012]
[1644702542718,1.4428,41838.0,41837.0,0.0012]
[1644702542919,0.1978,41838.0,41837.0,0.0012]
[1644702543519,0.0978,41838.0,41837.0,0.0012]
[1644702543718,1.63097172,41838.0,41837.0,0.0012]
[1644702543919,1.73097172,41838.0,41837.0,0.0012]
[1644702545578,0.1978,41838.0,41837.0,0.0012]
[1644702545775,0.0478,41838.0,41837.0,0.0012]
[1644702546877,0.059773,41846.0,41837.0,0.0012]
[1644702547078,0.5,41847.0,41837.0,0.0012]
[1644702547280,0.119541,41850.0,41837.0,0.0012]
[1644702547677,0.27944283,41849.0,41840.0,0.00037153]
[1644702547977,0.059773,41847.0,41840.0,0.00037153]
[1644702548177,0.25816048,41846.0,41840.0,0.00037153]
[1644702548421,0.167363,41845.0,41840.0,0.00037153]
[1644702548621,0.167363,41845.0,41837.0,0.0012]
[1644702548819,1.88145756,41844.0,41841.0,0.00037152]
[1644702549019,0.31264632,41843.0,41841.0,0.00037152]
[1644702549220,0.3055415,41842.0,41841.0,0.00037152]
[1644702549422,0.4533415,41842.0,41841.0,0.00037152]
[1644702549620,0.1478,41842.0,41841.0,0.00037152]
[1644702549823,0.0478,41842.0,41841.0,0.00037152]
[1644702550020,0.0478,41842.0,41837.0,0.22827026]
[1644702550220,0.0478,41842.0,41839.0,0.00013836]
[1644702550621,0.259781,41845.0,41839.0,0.07320591]
[1644702550622,0.459781,41845.0,41839.0,0.07320591]
[1644702550821,0.359781,41845.0,41839.0,0.00013836]
[1644702551022,0.3,41844.0,41839.0,0.00013836]
[1644702551226,0.059781,41845.0,41837.0,0.22827026]
[1644702551430,0.109781,41845.0,41840.0,0.00033088]
[1644702551625,0.26508762,41844.0,41840.0,0.00033088]
[1644702551822,0.31508762,41844.0,41840.0,0.00033088]
[1644702552066,0.05,41843.0,41840.0,0.00033088]
[1644702552469,0.05,41843.0,41837.0,0.00403416]
[1644702552668,0.05,41843.0,41839.0,0.00033272]
[1644702553266,0.36508762,41844.0,41839.0,0.0755221]
[1644702553671,0.059781,41845.0,41839.0,0.30987315]
[1644702553867,0.059781,41845.0,41839.0,0.0755221]
[1644702554067,0.054781,41845.0,41839.0,0.0755221]
[1644702554271,0.054781,41845.0,41842.0,0.25591359]
[1644702555269,0.054781,41845.0,41841.0,0.00033598]
[1644702555270,0.00292444,41842.0,41841.0,0.00033598]
[1644702556114,0.00292444,41842.0,41840.0,0.00283552]
[1644702558211,0.00292444,41842.0,41838.0,0.19864354]
[1644702558414,0.00292444,41842.0,41839.0,0.0712304]
[1644702560470,0.00292444,41842.0,41837.0,0.0012]
[1644702560671,0.00359498,41844.0,41837.0,0.0012]
[1644702561072,0.00359498,41844.0,41837.0,0.00136694]
[1644702561571,0.00359498,41844.0,41840.0,0.07437067]
[1644702561973,0.00359498,41844.0,41837.0,0.0012]
[1644702562174,0.05978,41843.0,41837.0,0.0012]
[1644702562373,0.27131036,41842.0,41837.0,0.0012]
[1644702562572,0.05979,41841.0,41837.0,0.0012]
[1644702562776,0.119574,41841.0,41837.0,0.0012]
[1644702562973,0.71045936,41842.0,41837.0,0.0012]
[1644702562974,0.47131036,41842.0,41837.0,0.0012]
[1644702563172,0.05,41840.0,41837.0,0.08357355]
[1644702563416,0.26741686,41839.0,41837.0,0.0012]
[1644702563616,0.0478,41838.0,41837.0,0.0012]
[1644702563816,0.35621483,41838.0,41837.0,0.0012]
[1644702564014,0.0978,41838.0,41837.0,0.0012]
[1644702564213,0.1978,41838.0,41837.0,0.0012]
[1644702564615,0.0478,41838.0,41837.0,0.0012]
[1644702564816,0.0978,41838.0,41837.0,0.0012]
[1644702565514,0.1478,41838.0,41837.0,0.0012]
[1644702565714,0.0978,41838.0,41837.0,0.0012]
[1644702566315,0.40585428,41838.0,41837.0,0.0012]
[1644702566717,0.50585428,41838.0,41837.0,0.0012]
[1644702567375,0.50585428,41838.0,41821.0,0.01]
[1644702567376,0.95,41834.0,41821.0,0.01]
[1644702567578,0.359798,41833.0,41821.0,0.01]
[1644702567776,0.3,41832.0,41821.0,0.01]
[1644702567979,1.5928,41832.0,41821.0,0.01]
[1644702568377,1.6928,41832.0,41821.0,0.01]
[1644702569980,1.6928,41832.0,41817.0,0.01470115]
[1644702569981,2.34374116,41820.0,41817.0,0.01470115]
[1644702570194,2.34374116,41820.0,41796.0,0.05]
[1644702570195,1.15,41818.0,41796.0,0.05]
[1644702570380,1.15,41818.0,41790.0,0.80770303]
[1644702570381,0.5974,41808.0,41790.0,0.03030303]
[1644702570592,0.5974,41791.0,41790.0,0.03030303]
[1644702570838,2.12514,41791.0,41790.0,0.03030303]
[1644702571134,2.16981,41791.0,41790.0,0.03030303]
[1644702571528,2.229664,41791.0,41790.0,0.03030303]
[1644702572530,1.352654,41791.0,41790.0,0.03030303]
[1644702572728,0.299301,41796.0,41790.0,0.03030303]
[1644702572729,0.2171915,41794.0,41790.0,0.73030303]
[1644702573132,0.0478,41805.0,41790.0,1.99244391]
[1644702573431,0.107634,41804.0,41797.0,0.24667502]
[1644702573628,0.0478,41804.0,41798.0,0.08379757]
[1644702573828,0.16288055,41807.0,41798.0,0.08379757]
[1644702574228,0.16288055,41807.0,41790.0,0.03030303]
[1644702574229,0.119674,41806.0,41805.0,0.08788007]
[1644702574430,0.16288055,41807.0,41805.0,0.13780376]
[1644702574680,0.2353,41825.0,41805.0,0.13780376]
[1644702574681,0.16288055,41816.0,41805.0,0.16716785]
[1644702574880,0.1230193,41827.0,41805.0,0.11716785]
[1644702575079,0.1230193,41827.0,41807.0,0.05]
[1644702575279,0.1230193,41827.0,41818.0,0.25632066]
[1644702575280,0.1828213,41827.0,41818.0,0.25632066]
[1644702575480,0.1828213,41827.0,41815.0,0.19257525]
[1644702575683,0.3,41826.0,41815.0,0.19257525]
[1644702575880,0.3,41826.0,41813.0,0.0478]
[1644702576280,0.3,41826.0,41807.0,0.05]
[1644702576481,0.119621,41823.0,41807.0,0.05]
[1644702576680,0.119621,41823.0,41815.0,0.0003755]
[1644702576681,0.3,41822.0,41815.0,0.0003755]
[1644702576881,0.24612233,41820.0,41815.0,0.0003755]
[1644702577082,1.245,41818.0,41815.0,0.0003755]
[1644702577381,0.3,41817.0,41815.0,0.0003755]
[1644702577580,0.059822,41816.0,41815.0,0.0003755]
[1644702577981,0.59982201,41816.0,41815.0,0.0003755]
[1644702578186,0.00085911,41814.0,41813.0,0.01]
[1644702578423,0.00085911,41814.0,41809.0,0.00150222]
[1644702578424,0.01,41813.0,41809.0,0.00150222]
[1644702578623,0.30755193,41812.0,41810.0,0.0015022]
[1644702578823,0.30755193,41812.0,41797.0,0.05]
[1644702578824,1.245,41804.0,41797.0,0.05]
[1644702579022,0.0478,41804.0,41792.0,0.29001039]
[1644702579223,0.05984,41801.0,41800.0,0.06737598]
[1644702579423,0.0478,41804.0,41794.0,0.22582596]
[1644702579623,0.059836,41803.0,41796.0,0.025]
[1644702579820,0.059836,41803.0,41794.0,0.22582596]
[1644702580221,1.295,41807.0,41792.0,0.22618678]
[1644702580222,0.059832,41806.0,41792.0,0.20118678]
[1644702580423,0.14865911,41814.0,41792.0,0.20118678]
[1644702580620,0.059827,41811.0,41804.0,0.11410063]
[1644702581222,0.119652,41811.0,41804.0,0.11410063]
[1644702581433,0.0831385,41814.0,41808.0,0.0245]
[1644702581434,0.00085911,41814.0,41808.0,0.0245]
[1644702581622,0.00085911,41814.0,41809.0,0.0245]
[1644702581825,0.27061887,41814.0,41804.0,0.08910063]
[1644702582068,0.27061887,41814.0,41808.0,0.0245]
[1644702582265,0.27061887,41814.0,41804.0,0.08910063]
[1644702582467,0.00085911,41814.0,41804.0,0.08910063]
[1644702582666,0.26761735,41814.0,41808.0,0.00013144]
[1644702583470,0.32743835,41814.0,41812.0,0.0245]
[1644702583771,0.00085911,41814.0,41812.0,0.0245]
[1644702584171,0.00036068,41813.0,41812.0,0.0245]
[1644702584468,0.00036068,41813.0,41812.0,0.0195]
[1644702584673,0.00036068,41813.0,41812.0,0.019]
[1644702585269,0.00085911,41814.0,41812.0,0.019]
[1644702586720,0.00085911,41814.0,41813.0,0.094]
[1644702587721,0.00085911,41814.0,41813.0,0.0935]
[1644702588926,0.00085911,41814.0,41813.0,0.0685]
[1644702589125,0.00085911,41814.0,41813.0,0.07114253]
[1644702589326,0.3,41826.0,41814.0,1.14400073]
[1644702589582,0.11926795,41827.0,41825.0,0.019]
[1644702589781,0.13631954,41822.0,41819.0,0.15]
[1644702589981,0.13131954,41822.0,41821.0,0.15]
[1644702590281,0.13131954,41822.0,41821.0,0.24989447]
[1644702590480,0.13131954,41822.0,41821.0,0.0435]
[1644702590681,0.13131954,41822.0,41821.0,0.24705954]
[1644702591282,0.13131954,41822.0,41821.0,0.0385]
[1644702591879,0.13131954,41822.0,41821.0,0.3885]
[1644702592281,0.13131954,41822.0,41821.0,0.4829266]
[1644702592682,0.13131954,41822.0,41821.0,0.2913266]
[1644702592882,0.12631954,41822.0,41821.0,0.98209841]
[1644702593181,0.00022933,41824.0,41822.0,0.8]
[1644702593417,0.00022933,41824.0,41823.0,0.5663913]
[1644702593717,0.11926795,41827.0,41823.0,0.5658913]
[1644702593918,0.11926795,41827.0,41824.0,0.2]
[1644702594119,0.11926795,41827.0,41825.0,0.3885]
[1644702594416,0.11926795,41827.0,41826.0,0.11128635]
[1644702594817,0.11926795,41827.0,41826.0,0.43299245]
[1644702595219,0.11926795,41827.0,41826.0,0.11128635]
[1644702595417,0.11926795,41827.0,41826.0,0.4396816]
[1644702595818,0.11926795,41827.0,41826.0,0.11128635]
[1644702596018,0.08926795,41827.0,41826.0,0.044]
[1644702596218,0.08926795,41827.0,41822.0,0.01]
[1644702596219,0.08926795,41827.0,41822.0,0.0095]
[1644702597076,0.08426795,41827.0,41826.0,0.079327]
[1644702597477,0.08426795,41827.0,41826.0,0.34015678]
[1644702597678,0.08426795,41827.0,41826.0,0.33632099]
[1644702597881,0.08465784,41827.0,41826.0,0.33632099]
[1644702598078,0.07465784,41827.0,41826.0,0.91207392]
[1644702598277,0.07465784,41827.0,41826.0,0.57078506]
[1644702598477,0.07465784,41827.0,41826.0,0.58078506]
[1644702598678,0.07426795,41827.0,41826.0,0.58078506]
[1644702598878,0.07426795,41827.0,41826.0,0.34632099]
[1644702599182,0.07426795,41827.0,41826.0,0.08499121]
[1644702599578,0.04926795,41827.0,41826.0,0.08499121]
[1644702599977,0.04926795,41827.0,41826.0,0.35079254]
[1644702601628,0.04926795,41827.0,41826.0,0.35029254]
[1644702602630,0.17916796,41827.0,41826.0,0.35029254]
[1644702603332,0.17416796,41827.0,41826.0,0.35029254]
[1644702604333,0.17416796,41827.0,41826.0,0.23521254]
[1644702604769,0.17416796,41827.0,41826.0,0.23471254]
[1644702604970,0.17416796,41827.0,41825.0,0.00296293]
[1644702605169,0.00313648,41826.0,41824.0,0.06986859]
[1644702606070,0.00313648,41826.0,41825.0,0.22100458]
[1644702607471,0.00313648,41826.0,41825.0,0.22050458]
[1644702608918,0.00035967,41828.0,41826.0,0.95]
[1644702609120,0.00035967,41828.0,41827.0,1.75664088]
[1644702609121,9.67e-06,41828.0,41827.0,1.75664088]
[1644702609321,9.67e-06,41828.0,41827.0,2.74564088]
[1644702609522,0.01,41839.0,41827.0,3.52684088]
[1644702609719,0.01,41839.0,41830.0,0.107553]
[1644702610020,0.01,41839.0,41834.0,0.23764779]
[1644702610220,0.01,41839.0,41834.0,0.28164779]
[1644702610421,0.01,41839.0,41835.0,0.19549491]
[1644702610722,0.01,41849.0,41835.0,0.19549491]
[1644702610923,0.01,41849.0,41838.0,0.1445]
[1644702611123,0.01,41849.0,41840.0,0.2]
[1644702611321,0.01,41849.0,41841.0,0.0809834]
[1644702611524,0.01,41849.0,41841.0,0.2254834]
[1644702611723,0.01,41849.0,41846.0,0.43401754]
[1644702612187,0.01,41859.0,41852.0,0.1445]
[1644702612384,0.01,41859.0,41853.0,0.044]
[1644702612585,0.5349,41867.0,41854.0,1.289]
[1644702612587,0.5249,41867.0,41854.0,1.289]
[1644702612784,0.05,41872.0,41855.0,0.044]
[1644702612984,0.05,41872.0,41855.0,0.13859]
[1644702613186,0.5349,41876.0,41858.0,0.23996516]
[1644702613384,0.20175576,41878.0,41858.0,0.23996516]
[1644702613585,0.05,41874.0,41858.0,0.23996516]
[1644702613785,0.05,41874.0,41858.0,1.48496516]
[1644702613986,0.00022867,41864.0,41858.0,1.48496516]
[1644702614287,0.00022867,41864.0,41859.0,0.08108824]
[1644702614486,0.06,41869.0,41859.0,0.40699999]
[1644702614689,0.01,41869.0,41860.0,0.044]
[1644702614886,0.00022821,41864.0,41860.0,0.044]
[1644702615587,0.00022821,41864.0,41861.0,0.26080545]
[1644702615838,0.00091269,41870.0,41861.0,0.26080545]
[1644702615839,0.045,41872.0,41867.0,0.22125838]
[1644702616237,0.00091269,41870.0,41867.0,0.22125838]
[1644702616637,0.00091269,41870.0,41866.0,0.044]
[1644702616835,0.00091269,41870.0,41867.0,0.0702034]
[1644702617038,0.045,41872.0,41868.0,0.25043225]
[1644702617241,0.00022821,41870.0,41867.0,0.0702034]
[1644702617638,0.045,41872.0,41867.0,0.28198741]
[1644702617639,0.04022821,41872.0,41867.0,0.28198741]
[1644702617836,0.00091269,41876.0,41867.0,0.28198741]
[1644702618236,0.01,41879.0,41867.0,0.28198741]
[1644702618438,0.04022821,41870.0,41867.0,0.28198741]
[1644702619869,0.0055,41878.0,41862.0,1.245]
[1644702619870,0.04022821,41873.0,41864.0,0.0811365]
[1644702620075,0.01,41879.0,41878.0,0.26128455]
[1644702620271,0.01,41879.0,41878.0,0.4907977]
[1644702621070,0.01,41879.0,41878.0,0.58049225]
[1644702621071,0.0001,41879.0,41878.0,0.58049225]
[1644702621274,0.0091,41883.0,41878.0,0.58049225]
[1644702621869,0.01,41889.0,41880.0,0.5]
[1644702622069,0.5349,41892.0,41886.0,0.23512423]
[1644702622269,0.0005,41897.0,41887.0,0.07782488]
[1644702622471,0.05,41902.0,41887.0,0.07782488]
[1644702622870,0.04022821,41889.0,41887.0,0.07782488]
[1644702623071,0.248747,41909.0,41887.0,0.07782488]
[1644702623072,0.03022821,41897.0,41887.0,0.07782488]
[1644702623334,0.03022821,41908.0,41893.0,0.24441275]
[1644702623729,0.03022821,41908.0,41894.0,0.044]
[1644702623928,0.01,41909.0,41899.0,0.23466616]
[1644702624131,0.53432247,41895.0,41894.0,0.044]
[1644702624332,0.53432247,41895.0,41883.0,0.7557]
[1644702624334,0.55955068,41895.0,41883.0,0.7557]
[1644702624529,0.03022821,41887.0,41883.0,0.7557]
[1644702624730,0.03022821,41884.0,41878.0,0.7302]
[1644702624933,0.3,41894.0,41869.0,0.16959136]
[1644702624934,0.03022821,41881.0,41871.0,0.05]
[1644702625133,0.15,41894.0,41878.0,0.08726427]
[1644702625134,0.03022821,41884.0,41878.0,0.08726427]
[1644702625331,0.1941857,41890.0,41878.0,0.08726427]
[1644702625332,0.05,41890.0,41878.0,0.08726427]
[1644702625529,0.03022821,41879.0,41878.0,0.08726427]
[1644702625729,0.03022821,41883.0,41878.0,0.08726427]
[1644702625928,0.03022821,41883.0,41874.0,0.044]
[1644702626130,0.1,41889.0,41869.0,0.00245136]
[1644702626131,0.03022821,41875.0,41869.0,0.00245136]
[1644702626331,0.3,41882.0,41869.0,0.00245136]
[1644702626332,0.03022821,41870.0,41869.0,0.00245136]
[1644702626930,0.03022821,41870.0,41863.0,0.06712257]
[1644702627171,0.3,41876.0,41867.0,0.00039276]
[1644702627172,0.25103969,41873.0,41867.0,0.00039276]
[1644702627375,0.3,41876.0,41867.0,0.00039276]
[1644702627376,0.03022821,41868.0,41867.0,0.00039276]
[1644702628475,0.03022821,41868.0,41857.0,0.05]
[1644702628476,0.29542269,41868.0,41857.0,0.05]
[1644702628676,0.03022821,41858.0,41851.0,0.01]
[1644702629079,0.26519448,41868.0,41851.0,0.01]
[1644702629273,0.26519448,41868.0,41857.0,0.24961221]
[1644702629274,0.03022821,41858.0,41857.0,0.24961221]
[1644702629473,0.03022821,41858.0,41857.0,0.33068506]
[1644702629673,0.169475,41872.0,41857.0,0.33068506]
[1644702629674,0.1,41881.0,41858.0,0.95]
[1644702629875,0.70849047,41895.0,41858.0,0.95]
[1644702629876,0.52932247,41895.0,41866.0,1.31214088]
[1644702630074,0.52932247,41895.0,41869.0,1.46164088]
[1644702630278,0.52932247,41895.0,41873.0,1.245]
[1644702630483,0.52932247,41895.0,41869.0,0.883]
[1644702630674,0.18906338,41893.0,41887.0,0.0712003]
[1644702630921,0.18906338,41893.0,41877.0,0.26288279]
[1644702631921,0.18906338,41893.0,41879.0,0.25465335]
[1644702632320,0.18906338,41893.0,41883.0,0.00038146]
[1644702632523,0.00038138,41891.0,41883.0,0.00038146]
[1644702633323,0.18906338,41893.0,41877.0,0.06660609]
[1644702633522,0.05,41890.0,41885.0,0.00038145]
[1644702634322,0.00038139,41891.0,41885.0,0.00038145]
[1644702634569,0.159709,41892.0,41878.0,0.07393905]
[1644702634770,0.0503814,41891.0,41885.0,0.00038145]
[1644702635371,0.0003814,41891.0,41885.0,0.00038145]
[1644702635770,0.179125,41892.0,41877.0,0.044]
[1644702635970,0.00036219,41891.0,41886.0,0.00036224]
[1644702636171,0.05036219,41891.0,41886.0,0.00036224]
[1644702636774,0.00036219,41891.0,41886.0,0.00036224]
[1644702636974,0.52932247,41895.0,41880.0,0.22300263]
[1644702637173,0.00187308,41892.0,41886.0,0.00036224]
[1644702637374,0.0003622,41891.0,41886.0,0.00036224]
[1644702638177,0.00187308,41892.0,41884.0,0.00245043]
[1644702638425,0.24528802,41891.0,41886.0,0.00036224]
[1644702638626,0.0003622,41891.0,41886.0,0.00036224]
[1644702639227,0.00187308,41892.0,41884.0,0.00245043]
[1644702639427,0.00187308,41892.0,41886.0,0.00036505]
[1644702639627,0.21003753,41890.0,41886.0,0.00036505]
[1644702640431,0.26003753,41890.0,41884.0,0.00245043]
[1644702640629,0.31003753,41890.0,41886.0,0.00036505]
[1644702640840,0.31003753,41890.0,41884.0,0.00036505]
[1644702640841,0.05,41888.0,41884.0,0.00036505]
[1644702641030,1.27235006,41889.0,41884.0,0.00036505]
[1644702641031,0.05,41885.0,41884.0,0.00036505]
[1644702641236,0.394,41885.0,41884.0,0.00036505]
[1644702641435,0.000564,41882.0,41867.0,0.04]
[1644702641631,0.26549653,41878.0,41867.0,0.04]
[1644702641830,0.059731,41875.0,41867.0,0.04]
[1644702642887,0.059731,41875.0,41868.0,0.26071051]
[1644702643088,0.26758172,41874.0,41868.0,0.26071051]
[1644702643287,0.26758172,41874.0,41867.0,0.04]
[1644702644688,0.36758172,41874.0,41867.0,0.04]
[1644702644993,0.46758172,41874.0,41867.0,0.04]
[1644702645190,0.02930789,41866.0,41859.0,0.05]
[1644702645390,0.02930789,41866.0,41848.0,0.7319]
[1644702645589,0.02930789,41866.0,41854.0,0.33421765]
[1644702645590,0.33699173,41866.0,41854.0,0.33421765]
[1644702645827,0.43699173,41866.0,41860.0,0.24047928]
[1644702646421,0.43699173,41866.0,41854.0,0.33421765]
[1644702646621,0.43699173,41866.0,41854.0,0.24549343]